{"text_format":"3","workbook":"xlsx","n_sheets":5,"sheets":["Кешке шолу","Қонақтар тізімі","Тамақ және сусындар","Басқа негіздер","Орындардың орналасуының торы"],"not_rendered":{"defined_names":9},"read":"whole","date_system":"1900"}

{"sheet":"Кешке шолу","index":0,"n_rows":21,"n_cols":8,"rows_kept":21,"merged":[[6,3,6,4],[6,5,6,6],[9,1,9,2],[12,1,12,2],[15,1,15,2]]}
[]
[]
[null,"Кешке шолу"]
[]
[]
[null,"ОҚИҒА",null,"ҚОНАҚТАР ТУРАЛЫ ЖИЫНТЫҚ МӘЛІМЕТ",{"$nulls":3},{"$f":"\"ПАЙДАЛАНЫЛМАҒАН ЖИНАЛЫС ҮШІН ЖАУАПТАР: \"&OutstandingRSVPs","v":"ПАЙДАЛАНЫЛМАҒАН ЖИНАЛЫС ҮШІН ЖАУАПТАР: 2"}]
[null,"Әженің 75-ші туған күні",null,"ЖАУАП БЕРУ ҚАЖЕТ БӨЛІГІНЕ ШОЛУ",null,"ШЫҒЫН/ҚОНАҚ",null,"БЮДЖЕТ МӨЛШЕРІ"]
[{"$nulls":3},"Расталған қонақтар","Жалпы расталған","Тамақ","Басқа","Қорытынды"]
[null,"КҮН",null,"Үлкендер",{"$f":"SUMIF(GuestTable[ҚАТЫСУШЫЛАР],\"=Иә\",GuestTable[ҮЛКЕНДЕР])","v":26},{"$f":"FoodTable[[#Totals],[ШЫҒЫН/ҮЛКЕН АДАМ]]","v":{"v":12.690089084110037,"d":"Т12.69"}},{"$f":"EssentialCostPerGuest","v":{"v":18.695652173913043,"d":"Т18.70"}},{"$f":"(AttendeeSummary[[#This Row],[Тамақ]]+AttendeeSummary[[#This Row],[Басқа]])*AdultTotal","v":{"v":816.0292727086002,"d":"Т816.03"}}]
[null,"2011-06-14",null,"Балалар",{"$f":"SUMIF(GuestTable[ҚАТЫСУШЫЛАР],\"=Иә\",GuestTable[БАЛАЛАР])","v":20},{"$f":"FoodTable[[#Totals],[ШЫҒЫН/БАЛА]]","v":{"v":7.252884190656953,"d":"Т7.25"}},{"$f":"EssentialCostPerGuest","v":{"v":18.695652173913043,"d":"Т18.70"}},{"$f":"(AttendeeSummary[[#This Row],[Тамақ]]+AttendeeSummary[[#This Row],[Басқа]])*ChildrenTotal","v":{"v":518.9707272914,"d":"Т518.97"}}]
[{"$nulls":3},"Қорытынды",{"$f":"SUBTOTAL(109,AttendeeSummary[Жалпы расталған])","v":46},{"$f":"\"Орт.     \"&TEXT(SUBTOTAL(101,AttendeeSummary[Тамақ]),\"Т# ##0,00\")","v":"Орт.     Т9,97"},{"$f":"\"Орт.     \"&TEXT(SUBTOTAL(101,AttendeeSummary[Басқа]),\"Т# ##0,00\")","v":"Орт.     Т18,70"},{"$f":"SUBTOTAL(109,AttendeeSummary[Қорытынды])","v":{"v":1335,"d":"Т1,335.00"}}]
[null,"УАҚЫТ"]
[null,"14:00 — 16:00"]
[]
[null,"ОРЫН",null,"БЮДЖЕТ ТУРАЛЫ ЖИЫНТЫҚ МӘЛІМЕТ"]
[null,"Ким тәтенің үйі",null,"ЭЛЕМЕНТ","САНЫ","БЮДЖЕТ МӨЛШЕРІ","ЖАЛПЫ ҚҰНЫ","АЙЫРМАШЫЛЫҚ"]
[{"$nulls":3},"Тамақ және сусындар",{"$f":"COUNTA(FoodTable[ЖАЛПЫ ПОРЦИЯЛАР])","v":18},{"v":500,"d":"Т500.00"},{"$f":"FoodTable[[#Totals],[ЖАЛПЫ ҚҰНЫ]]","v":{"v":475,"d":"Т475.00"}},{"$f":"BudgetOverview[[#This Row],[БЮДЖЕТ МӨЛШЕРІ]]-BudgetOverview[[#This Row],[ЖАЛПЫ ҚҰНЫ]]","v":{"v":25,"d":"Т25.00"}}]
[{"$nulls":3},{"$f":"Table1Header","v":"Жабдық пен қорлар"},{"$f":"COUNTA(Table1Budget[Жабдық пен қорлар])","v":7},{"v":400,"d":"Т400.00"},{"$f":"Table1Budget[[#Totals],[Құны]]","v":{"v":400,"d":"Т400.00"}},{"$f":"BudgetOverview[[#This Row],[БЮДЖЕТ МӨЛШЕРІ]]-BudgetOverview[[#This Row],[ЖАЛПЫ ҚҰНЫ]]","v":{"v":0,"d":"Т0.00"}}]
[{"$nulls":3},{"$f":"Table2Header","v":0},{"$f":"COUNTA(Table2Budget[Декорациялар])","v":4},{"v":150,"d":"Т150.00"},{"$f":"Table2Budget[[#Totals],[Құны]]","v":{"v":175,"d":"Т175.00"}},{"$f":"BudgetOverview[[#This Row],[БЮДЖЕТ МӨЛШЕРІ]]-BudgetOverview[[#This Row],[ЖАЛПЫ ҚҰНЫ]]","v":{"v":-25,"d":"-Т25.00"}}]
[{"$nulls":3},{"$f":"Table3Header","v":0},{"$f":"COUNTA(Table3Budget[Басқа])","v":4},{"v":300,"d":"Т300.00"},{"$f":"Table3Budget[[#Totals],[Құны]]","v":{"v":285,"d":"Т285.00"}},{"$f":"BudgetOverview[[#This Row],[БЮДЖЕТ МӨЛШЕРІ]]-BudgetOverview[[#This Row],[ЖАЛПЫ ҚҰНЫ]]","v":{"v":15,"d":"Т15.00"}}]
[{"$nulls":3},"Қорытынды",{"$f":"SUBTOTAL(109,BudgetOverview[САНЫ])","v":33},{"$f":"SUBTOTAL(109,BudgetOverview[БЮДЖЕТ МӨЛШЕРІ])","v":{"v":1350,"d":"Т1,350.00"}},{"$f":"SUBTOTAL(109,BudgetOverview[ЖАЛПЫ ҚҰНЫ])","v":{"v":1335,"d":"Т1,335.00"}},{"$f":"SUBTOTAL(109,BudgetOverview[АЙЫРМАШЫЛЫҚ])","v":{"v":15,"d":"Т15.00"}}]

{"sheet":"Қонақтар тізімі","index":1,"n_rows":22,"n_cols":12,"rows_kept":22}
[]
[]
[null,"Қонақтар тізімі"]
[]
[]
[]
[null,"АТЫ","МЕКЕНЖАЙ","ҚАЛА","ШТАТ","ПОШТАЛЫҚ ИНДЕКС","ТЕЛЕФОН","ЭЛЕКТРОНДЫҚ ПОШТА","ҚАТЫСУШЫЛАР","БАЛАЛАР","ҮЛКЕНДЕР","ҚОРЫТЫНДЫ"]
[null,"1-жанұя","1-мекенжай","1-қала","1-штат","1-пошталық индекс","1-телефон","1-электрондық пошта","Жоқ",2,2,{"$f":"SUM(GuestTable[[#This Row],[БАЛАЛАР]:[ҮЛКЕНДЕР]])","v":4}]
[null,"2-жанұя","2-мекенжай","2-қала","2-штат","2-пошталық индекс","2-телефон","2-электрондық пошта","Иә",1,1,{"$f":"SUM(GuestTable[[#This Row],[БАЛАЛАР]:[ҮЛКЕНДЕР]])","v":2}]
[null,"3-жанұя","3-мекенжай","3-қала","3-штат","3-пошталық индекс","3-телефон","3-электрондық пошта","Иә",3,3,{"$f":"SUM(GuestTable[[#This Row],[БАЛАЛАР]:[ҮЛКЕНДЕР]])","v":6}]
[null,"4-жанұя","4-мекенжай","4-қала","4-штат","4-пошталық индекс","4-телефон","4-электрондық пошта",null,null,2,{"$f":"SUM(GuestTable[[#This Row],[БАЛАЛАР]:[ҮЛКЕНДЕР]])","v":2}]
[null,"5-жанұя","5-мекенжай","5-қала","5-штат","5-пошталық индекс","5-телефон","5-электрондық пошта","Иә",4,3,{"$f":"SUM(GuestTable[[#This Row],[БАЛАЛАР]:[ҮЛКЕНДЕР]])","v":7}]
[null,"6-жанұя","6-мекенжай","6-қала","6-штат","6-пошталық индекс","6-телефон","6-электрондық пошта","Иә",2,2,{"$f":"SUM(GuestTable[[#This Row],[БАЛАЛАР]:[ҮЛКЕНДЕР]])","v":4}]
[null,"7-жанұя","7-мекенжай","7-қала","7-штат","7-пошталық индекс","7-телефон","7-электрондық пошта","Иә",1,4,{"$f":"SUM(GuestTable[[#This Row],[БАЛАЛАР]:[ҮЛКЕНДЕР]])","v":5}]
[null,"8-жанұя","8-мекенжай","8-қала","8-штат","8-пошталық индекс","8-телефон","8-электрондық пошта","Жоқ",5,3,{"$f":"SUM(GuestTable[[#This Row],[БАЛАЛАР]:[ҮЛКЕНДЕР]])","v":8}]
[null,"9-жанұя","9-мекенжай","9-қала","9-штат","9-пошталық индекс","9-телефон","9-электрондық пошта","Иә",3,2,{"$f":"SUM(GuestTable[[#This Row],[БАЛАЛАР]:[ҮЛКЕНДЕР]])","v":5}]
[null,"10-жанұя","10-мекенжай","10-қала","10-штат","10-пошталық индекс","10-телефон","10-электрондық пошта","Иә",null,4,{"$f":"SUM(GuestTable[[#This Row],[БАЛАЛАР]:[ҮЛКЕНДЕР]])","v":4}]
[null,"11-жанұя","11-мекенжай","11-қала","11-штат","11-пошталық индекс","11-телефон","11-электрондық пошта","Иә",3,5,{"$f":"SUM(GuestTable[[#This Row],[БАЛАЛАР]:[ҮЛКЕНДЕР]])","v":8}]
[null,"12-жанұя","12-мекенжай","12-қала","12-штат","12-пошталық индекс","12-телефон","12-электрондық пошта","Жоқ",2,3,{"$f":"SUM(GuestTable[[#This Row],[БАЛАЛАР]:[ҮЛКЕНДЕР]])","v":5}]
[null,"13-жанұя","13-мекенжай","13-қала","13-штат","13-пошталық индекс","13-телефон","13-электрондық пошта","Иә",3,2,{"$f":"SUM(GuestTable[[#This Row],[БАЛАЛАР]:[ҮЛКЕНДЕР]])","v":5}]
[null,"14-жанұя","14-мекенжай","14-қала","14-штат","14-пошталық индекс","14-телефон","14-электрондық пошта","Жоқ",null,1,{"$f":"SUM(GuestTable[[#This Row],[БАЛАЛАР]:[ҮЛКЕНДЕР]])","v":1}]
[null,"15-жанұя","15-мекенжай","15-қала","15-штат","15-пошталық индекс","15-телефон","15-электрондық пошта",null,null,2,{"$f":"SUM(GuestTable[[#This Row],[БАЛАЛАР]:[ҮЛКЕНДЕР]])","v":2}]

{"sheet":"Тамақ және сусындар","index":2,"n_rows":25,"n_cols":10,"rows_kept":25}
[]
[]
[null,"Тамақ және сусындар"]
[]
[null,"Жалпы қатысудың негізінде жалпы бөліктерді және әр порцияның құнын автоматты түрде есептеу үшін құн мен болжалды порцияларды енгізіңіз"]
[null,"ТАМАҚ НЕМЕСЕ СУСЫН ЭЛЕМЕНТІ","ЖАЛПЫ ҚҰНЫ","ПОРЦИЯ/БАЛА","ПОРЦИЯ/ҮЛКЕН АДАМ","ЖАЛПЫ ПОРЦИЯЛАР","ШЫҒЫН/ПОРЦИЯ","ШЫҒЫН/БАЛА","ШЫҒЫН/ҮЛКЕН АДАМ","ЕСКЕРІМДЕР"]
[null,"Сода",{"v":15,"d":"Т15.00"},0.5,2,{"$f":"(FoodTable[[#This Row],[ПОРЦИЯ/БАЛА]]*ChildrenTotal)+(FoodTable[[#This Row],[ПОРЦИЯ/ҮЛКЕН АДАМ]]*AdultTotal)","v":62},{"$f":"IFERROR(FoodTable[[#This Row],[ЖАЛПЫ ҚҰНЫ]]/FoodTable[[#This Row],[ЖАЛПЫ ПОРЦИЯЛАР]],\"\")","v":{"v":0.24193548387096775,"d":"Т0.24"}},{"$f":"IFERROR(FoodTable[[#This Row],[ШЫҒЫН/ПОРЦИЯ]]*FoodTable[[#This Row],[ПОРЦИЯ/БАЛА]],\"\")","v":{"v":0.12096774193548387,"d":"Т0.12"}},{"$f":"IFERROR(FoodTable[[#This Row],[ШЫҒЫН/ПОРЦИЯ]]*FoodTable[[#This Row],[ПОРЦИЯ/ҮЛКЕН АДАМ]],\"\")","v":{"v":0.4838709677419355,"d":"Т0.48"}},"2 литр бөтелке"]
[null,"Шырын қораптары",{"v":15,"d":"Т15.00"},2,0,{"$f":"(FoodTable[[#This Row],[ПОРЦИЯ/БАЛА]]*ChildrenTotal)+(FoodTable[[#This Row],[ПОРЦИЯ/ҮЛКЕН АДАМ]]*AdultTotal)","v":40},{"$f":"IFERROR(FoodTable[[#This Row],[ЖАЛПЫ ҚҰНЫ]]/FoodTable[[#This Row],[ЖАЛПЫ ПОРЦИЯЛАР]],\"\")","v":{"v":0.375,"d":"Т0.38"}},{"$f":"IFERROR(FoodTable[[#This Row],[ШЫҒЫН/ПОРЦИЯ]]*FoodTable[[#This Row],[ПОРЦИЯ/БАЛА]],\"\")","v":{"v":0.75,"d":"Т0.75"}},{"$f":"IFERROR(FoodTable[[#This Row],[ШЫҒЫН/ПОРЦИЯ]]*FoodTable[[#This Row],[ПОРЦИЯ/ҮЛКЕН АДАМ]],\"\")","v":{"v":0,"d":"Т0.00"}},"Алма және ақ жүзім"]
[null,"Шарап",{"v":50,"d":"Т50.00"},0,2,{"$f":"(FoodTable[[#This Row],[ПОРЦИЯ/БАЛА]]*ChildrenTotal)+(FoodTable[[#This Row],[ПОРЦИЯ/ҮЛКЕН АДАМ]]*AdultTotal)","v":52},{"$f":"IFERROR(FoodTable[[#This Row],[ЖАЛПЫ ҚҰНЫ]]/FoodTable[[#This Row],[ЖАЛПЫ ПОРЦИЯЛАР]],\"\")","v":{"v":0.9615384615384616,"d":"Т0.96"}},{"$f":"IFERROR(FoodTable[[#This Row],[ШЫҒЫН/ПОРЦИЯ]]*FoodTable[[#This Row],[ПОРЦИЯ/БАЛА]],\"\")","v":{"v":0,"d":"Т0.00"}},{"$f":"IFERROR(FoodTable[[#This Row],[ШЫҒЫН/ПОРЦИЯ]]*FoodTable[[#This Row],[ПОРЦИЯ/ҮЛКЕН АДАМ]],\"\")","v":{"v":1.9230769230769231,"d":"Т1.92"}}]
[null,"Бәліш",{"v":75,"d":"Т75.00"},1,1,{"$f":"(FoodTable[[#This Row],[ПОРЦИЯ/БАЛА]]*ChildrenTotal)+(FoodTable[[#This Row],[ПОРЦИЯ/ҮЛКЕН АДАМ]]*AdultTotal)","v":46},{"$f":"IFERROR(FoodTable[[#This Row],[ЖАЛПЫ ҚҰНЫ]]/FoodTable[[#This Row],[ЖАЛПЫ ПОРЦИЯЛАР]],\"\")","v":{"v":1.6304347826086956,"d":"Т1.63"}},{"$f":"IFERROR(FoodTable[[#This Row],[ШЫҒЫН/ПОРЦИЯ]]*FoodTable[[#This Row],[ПОРЦИЯ/БАЛА]],\"\")","v":{"v":1.6304347826086956,"d":"Т1.63"}},{"$f":"IFERROR(FoodTable[[#This Row],[ШЫҒЫН/ПОРЦИЯ]]*FoodTable[[#This Row],[ПОРЦИЯ/ҮЛКЕН АДАМ]],\"\")","v":{"v":1.6304347826086956,"d":"Т1.63"}},"Жергілікті наубайханадан тапсырыс беру"]
[null,"Балмұздақ",{"v":20,"d":"Т20.00"},1,1.5,{"$f":"(FoodTable[[#This Row],[ПОРЦИЯ/БАЛА]]*ChildrenTotal)+(FoodTable[[#This Row],[ПОРЦИЯ/ҮЛКЕН АДАМ]]*AdultTotal)","v":59},{"$f":"IFERROR(FoodTable[[#This Row],[ЖАЛПЫ ҚҰНЫ]]/FoodTable[[#This Row],[ЖАЛПЫ ПОРЦИЯЛАР]],\"\")","v":{"v":0.3389830508474576,"d":"Т0.34"}},{"$f":"IFERROR(FoodTable[[#This Row],[ШЫҒЫН/ПОРЦИЯ]]*FoodTable[[#This Row],[ПОРЦИЯ/БАЛА]],\"\")","v":{"v":0.3389830508474576,"d":"Т0.34"}},{"$f":"IFERROR(FoodTable[[#This Row],[ШЫҒЫН/ПОРЦИЯ]]*FoodTable[[#This Row],[ПОРЦИЯ/ҮЛКЕН АДАМ]],\"\")","v":{"v":0.5084745762711864,"d":"Т0.51"}}]
[null,"Пудинг шыныаяқтары",{"v":15,"d":"Т15.00"},1,0,{"$f":"(FoodTable[[#This Row],[ПОРЦИЯ/БАЛА]]*ChildrenTotal)+(FoodTable[[#This Row],[ПОРЦИЯ/ҮЛКЕН АДАМ]]*AdultTotal)","v":20},{"$f":"IFERROR(FoodTable[[#This Row],[ЖАЛПЫ ҚҰНЫ]]/FoodTable[[#This Row],[ЖАЛПЫ ПОРЦИЯЛАР]],\"\")","v":{"v":0.75,"d":"Т0.75"}},{"$f":"IFERROR(FoodTable[[#This Row],[ШЫҒЫН/ПОРЦИЯ]]*FoodTable[[#This Row],[ПОРЦИЯ/БАЛА]],\"\")","v":{"v":0.75,"d":"Т0.75"}},{"$f":"IFERROR(FoodTable[[#This Row],[ШЫҒЫН/ПОРЦИЯ]]*FoodTable[[#This Row],[ПОРЦИЯ/ҮЛКЕН АДАМ]],\"\")","v":{"v":0,"d":"Т0.00"}},"Жиынтық шыныаяқтарды сатып алу: ваниль және шоколад"]
[null,"Турама салынған саңырауқұлақтар",{"v":32,"d":"Т32.00"},1,2,{"$f":"(FoodTable[[#This Row],[ПОРЦИЯ/БАЛА]]*ChildrenTotal)+(FoodTable[[#This Row],[ПОРЦИЯ/ҮЛКЕН АДАМ]]*AdultTotal)","v":72},{"$f":"IFERROR(FoodTable[[#This Row],[ЖАЛПЫ ҚҰНЫ]]/FoodTable[[#This Row],[ЖАЛПЫ ПОРЦИЯЛАР]],\"\")","v":{"v":0.4444444444444444,"d":"Т0.44"}},{"$f":"IFERROR(FoodTable[[#This Row],[ШЫҒЫН/ПОРЦИЯ]]*FoodTable[[#This Row],[ПОРЦИЯ/БАЛА]],\"\")","v":{"v":0.4444444444444444,"d":"Т0.44"}},{"$f":"IFERROR(FoodTable[[#This Row],[ШЫҒЫН/ПОРЦИЯ]]*FoodTable[[#This Row],[ПОРЦИЯ/ҮЛКЕН АДАМ]],\"\")","v":{"v":0.8888888888888888,"d":"Т0.89"}},"Қаймақ пен сосиска салынған шампиньондар"]
[null,"Брускетта",{"v":22,"d":"Т22.00"},0,3,{"$f":"(FoodTable[[#This Row],[ПОРЦИЯ/БАЛА]]*ChildrenTotal)+(FoodTable[[#This Row],[ПОРЦИЯ/ҮЛКЕН АДАМ]]*AdultTotal)","v":78},{"$f":"IFERROR(FoodTable[[#This Row],[ЖАЛПЫ ҚҰНЫ]]/FoodTable[[#This Row],[ЖАЛПЫ ПОРЦИЯЛАР]],\"\")","v":{"v":0.28205128205128205,"d":"Т0.28"}},{"$f":"IFERROR(FoodTable[[#This Row],[ШЫҒЫН/ПОРЦИЯ]]*FoodTable[[#This Row],[ПОРЦИЯ/БАЛА]],\"\")","v":{"v":0,"d":"Т0.00"}},{"$f":"IFERROR(FoodTable[[#This Row],[ШЫҒЫН/ПОРЦИЯ]]*FoodTable[[#This Row],[ПОРЦИЯ/ҮЛКЕН АДАМ]],\"\")","v":{"v":0.8461538461538461,"d":"Т0.85"}},"Қызанақ және райхан"]
[null,"Сүрленген албырт",{"v":50,"d":"Т50.00"},1,2,{"$f":"(FoodTable[[#This Row],[ПОРЦИЯ/БАЛА]]*ChildrenTotal)+(FoodTable[[#This Row],[ПОРЦИЯ/ҮЛКЕН АДАМ]]*AdultTotal)","v":72},{"$f":"IFERROR(FoodTable[[#This Row],[ЖАЛПЫ ҚҰНЫ]]/FoodTable[[#This Row],[ЖАЛПЫ ПОРЦИЯЛАР]],\"\")","v":{"v":0.6944444444444444,"d":"Т0.69"}},{"$f":"IFERROR(FoodTable[[#This Row],[ШЫҒЫН/ПОРЦИЯ]]*FoodTable[[#This Row],[ПОРЦИЯ/БАЛА]],\"\")","v":{"v":0.6944444444444444,"d":"Т0.69"}},{"$f":"IFERROR(FoodTable[[#This Row],[ШЫҒЫН/ПОРЦИЯ]]*FoodTable[[#This Row],[ПОРЦИЯ/ҮЛКЕН АДАМ]],\"\")","v":{"v":1.3888888888888888,"d":"Т1.39"}}]
[null,"Шағын собалақтар",{"v":20,"d":"Т20.00"},1,2,{"$f":"(FoodTable[[#This Row],[ПОРЦИЯ/БАЛА]]*ChildrenTotal)+(FoodTable[[#This Row],[ПОРЦИЯ/ҮЛКЕН АДАМ]]*AdultTotal)","v":72},{"$f":"IFERROR(FoodTable[[#This Row],[ЖАЛПЫ ҚҰНЫ]]/FoodTable[[#This Row],[ЖАЛПЫ ПОРЦИЯЛАР]],\"\")","v":{"v":0.2777777777777778,"d":"Т0.28"}},{"$f":"IFERROR(FoodTable[[#This Row],[ШЫҒЫН/ПОРЦИЯ]]*FoodTable[[#This Row],[ПОРЦИЯ/БАЛА]],\"\")","v":{"v":0.2777777777777778,"d":"Т0.28"}},{"$f":"IFERROR(FoodTable[[#This Row],[ШЫҒЫН/ПОРЦИЯ]]*FoodTable[[#This Row],[ПОРЦИЯ/ҮЛКЕН АДАМ]],\"\")","v":{"v":0.5555555555555556,"d":"Т0.56"}},"4 сөмке — аралас"]
[null,"Қаймақтан жасалған ірімшік",{"v":10,"d":"Т10.00"},1,2,{"$f":"(FoodTable[[#This Row],[ПОРЦИЯ/БАЛА]]*ChildrenTotal)+(FoodTable[[#This Row],[ПОРЦИЯ/ҮЛКЕН АДАМ]]*AdultTotal)","v":72},{"$f":"IFERROR(FoodTable[[#This Row],[ЖАЛПЫ ҚҰНЫ]]/FoodTable[[#This Row],[ЖАЛПЫ ПОРЦИЯЛАР]],\"\")","v":{"v":0.1388888888888889,"d":"Т0.14"}},{"$f":"IFERROR(FoodTable[[#This Row],[ШЫҒЫН/ПОРЦИЯ]]*FoodTable[[#This Row],[ПОРЦИЯ/БАЛА]],\"\")","v":{"v":0.1388888888888889,"d":"Т0.14"}},{"$f":"IFERROR(FoodTable[[#This Row],[ШЫҒЫН/ПОРЦИЯ]]*FoodTable[[#This Row],[ПОРЦИЯ/ҮЛКЕН АДАМ]],\"\")","v":{"v":0.2777777777777778,"d":"Т0.28"}},"2 үлкен кеспек"]
[null,"Каперс",{"v":12,"d":"Т12.00"},1,2,{"$f":"(FoodTable[[#This Row],[ПОРЦИЯ/БАЛА]]*ChildrenTotal)+(FoodTable[[#This Row],[ПОРЦИЯ/ҮЛКЕН АДАМ]]*AdultTotal)","v":72},{"$f":"IFERROR(FoodTable[[#This Row],[ЖАЛПЫ ҚҰНЫ]]/FoodTable[[#This Row],[ЖАЛПЫ ПОРЦИЯЛАР]],\"\")","v":{"v":0.16666666666666666,"d":"Т0.17"}},{"$f":"IFERROR(FoodTable[[#This Row],[ШЫҒЫН/ПОРЦИЯ]]*FoodTable[[#This Row],[ПОРЦИЯ/БАЛА]],\"\")","v":{"v":0.16666666666666666,"d":"Т0.17"}},{"$f":"IFERROR(FoodTable[[#This Row],[ШЫҒЫН/ПОРЦИЯ]]*FoodTable[[#This Row],[ПОРЦИЯ/ҮЛКЕН АДАМ]],\"\")","v":{"v":0.3333333333333333,"d":"Т0.33"}},"3 банка"]
[null,"Тауық қанаттары",{"v":45,"d":"Т45.00"},2,4,{"$f":"(FoodTable[[#This Row],[ПОРЦИЯ/БАЛА]]*ChildrenTotal)+(FoodTable[[#This Row],[ПОРЦИЯ/ҮЛКЕН АДАМ]]*AdultTotal)","v":144},{"$f":"IFERROR(FoodTable[[#This Row],[ЖАЛПЫ ҚҰНЫ]]/FoodTable[[#This Row],[ЖАЛПЫ ПОРЦИЯЛАР]],\"\")","v":{"v":0.3125,"d":"Т0.31"}},{"$f":"IFERROR(FoodTable[[#This Row],[ШЫҒЫН/ПОРЦИЯ]]*FoodTable[[#This Row],[ПОРЦИЯ/БАЛА]],\"\")","v":{"v":0.625,"d":"Т0.63"}},{"$f":"IFERROR(FoodTable[[#This Row],[ШЫҒЫН/ПОРЦИЯ]]*FoodTable[[#This Row],[ПОРЦИЯ/ҮЛКЕН АДАМ]],\"\")","v":{"v":1.25,"d":"Т1.25"}},"Жергілікті дүкеннен сатып алу"]
[null,"Хумус",{"v":10,"d":"Т10.00"},4,6,{"$f":"(FoodTable[[#This Row],[ПОРЦИЯ/БАЛА]]*ChildrenTotal)+(FoodTable[[#This Row],[ПОРЦИЯ/ҮЛКЕН АДАМ]]*AdultTotal)","v":236},{"$f":"IFERROR(FoodTable[[#This Row],[ЖАЛПЫ ҚҰНЫ]]/FoodTable[[#This Row],[ЖАЛПЫ ПОРЦИЯЛАР]],\"\")","v":{"v":0.0423728813559322,"d":"Т0.04"}},{"$f":"IFERROR(FoodTable[[#This Row],[ШЫҒЫН/ПОРЦИЯ]]*FoodTable[[#This Row],[ПОРЦИЯ/БАЛА]],\"\")","v":{"v":0.1694915254237288,"d":"Т0.17"}},{"$f":"IFERROR(FoodTable[[#This Row],[ШЫҒЫН/ПОРЦИЯ]]*FoodTable[[#This Row],[ПОРЦИЯ/ҮЛКЕН АДАМ]],\"\")","v":{"v":0.2542372881355932,"d":"Т0.25"}},"Кештен бұрынғы кеште жасау"]
[null,"Пармезан пита қуырылған картобы",{"v":14,"d":"Т14.00"},4,6,{"$f":"(FoodTable[[#This Row],[ПОРЦИЯ/БАЛА]]*ChildrenTotal)+(FoodTable[[#This Row],[ПОРЦИЯ/ҮЛКЕН АДАМ]]*AdultTotal)","v":236},{"$f":"IFERROR(FoodTable[[#This Row],[ЖАЛПЫ ҚҰНЫ]]/FoodTable[[#This Row],[ЖАЛПЫ ПОРЦИЯЛАР]],\"\")","v":{"v":0.059322033898305086,"d":"Т0.06"}},{"$f":"IFERROR(FoodTable[[#This Row],[ШЫҒЫН/ПОРЦИЯ]]*FoodTable[[#This Row],[ПОРЦИЯ/БАЛА]],\"\")","v":{"v":0.23728813559322035,"d":"Т0.24"}},{"$f":"IFERROR(FoodTable[[#This Row],[ШЫҒЫН/ПОРЦИЯ]]*FoodTable[[#This Row],[ПОРЦИЯ/ҮЛКЕН АДАМ]],\"\")","v":{"v":0.3559322033898305,"d":"Т0.36"}},"Кештен бұрынғы кеште жасау"]
[null,"Аралас көкөністер",{"v":30,"d":"Т30.00"},4,10,{"$f":"(FoodTable[[#This Row],[ПОРЦИЯ/БАЛА]]*ChildrenTotal)+(FoodTable[[#This Row],[ПОРЦИЯ/ҮЛКЕН АДАМ]]*AdultTotal)","v":340},{"$f":"IFERROR(FoodTable[[#This Row],[ЖАЛПЫ ҚҰНЫ]]/FoodTable[[#This Row],[ЖАЛПЫ ПОРЦИЯЛАР]],\"\")","v":{"v":0.08823529411764706,"d":"Т0.09"}},{"$f":"IFERROR(FoodTable[[#This Row],[ШЫҒЫН/ПОРЦИЯ]]*FoodTable[[#This Row],[ПОРЦИЯ/БАЛА]],\"\")","v":{"v":0.35294117647058826,"d":"Т0.35"}},{"$f":"IFERROR(FoodTable[[#This Row],[ШЫҒЫН/ПОРЦИЯ]]*FoodTable[[#This Row],[ПОРЦИЯ/ҮЛКЕН АДАМ]],\"\")","v":{"v":0.8823529411764707,"d":"Т0.88"}},"Сәбіз таяқшалары, балдыркөк, брокколи, түсті орамжапырақ, қызыл және жасыл бұрыш"]
[null,"Ірімшік",{"v":15,"d":"Т15.00"},5,10,{"$f":"(FoodTable[[#This Row],[ПОРЦИЯ/БАЛА]]*ChildrenTotal)+(FoodTable[[#This Row],[ПОРЦИЯ/ҮЛКЕН АДАМ]]*AdultTotal)","v":360},{"$f":"IFERROR(FoodTable[[#This Row],[ЖАЛПЫ ҚҰНЫ]]/FoodTable[[#This Row],[ЖАЛПЫ ПОРЦИЯЛАР]],\"\")","v":{"v":0.041666666666666664,"d":"Т0.04"}},{"$f":"IFERROR(FoodTable[[#This Row],[ШЫҒЫН/ПОРЦИЯ]]*FoodTable[[#This Row],[ПОРЦИЯ/БАЛА]],\"\")","v":{"v":0.20833333333333331,"d":"Т0.21"}},{"$f":"IFERROR(FoodTable[[#This Row],[ШЫҒЫН/ПОРЦИЯ]]*FoodTable[[#This Row],[ПОРЦИЯ/ҮЛКЕН АДАМ]],\"\")","v":{"v":0.41666666666666663,"d":"Т0.42"}},"Аралас: қаймақтан жасалған ірімшік, жаңғақ бар ащы ірімшік"]
[null,"Крекер",{"v":25,"d":"Т25.00"},5,10,{"$f":"(FoodTable[[#This Row],[ПОРЦИЯ/БАЛА]]*ChildrenTotal)+(FoodTable[[#This Row],[ПОРЦИЯ/ҮЛКЕН АДАМ]]*AdultTotal)","v":360},{"$f":"IFERROR(FoodTable[[#This Row],[ЖАЛПЫ ҚҰНЫ]]/FoodTable[[#This Row],[ЖАЛПЫ ПОРЦИЯЛАР]],\"\")","v":{"v":0.06944444444444445,"d":"Т0.07"}},{"$f":"IFERROR(FoodTable[[#This Row],[ШЫҒЫН/ПОРЦИЯ]]*FoodTable[[#This Row],[ПОРЦИЯ/БАЛА]],\"\")","v":{"v":0.3472222222222222,"d":"Т0.35"}},{"$f":"IFERROR(FoodTable[[#This Row],[ШЫҒЫН/ПОРЦИЯ]]*FoodTable[[#This Row],[ПОРЦИЯ/ҮЛКЕН АДАМ]],\"\")","v":{"v":0.6944444444444444,"d":"Т0.69"}},"Аралас"]
[null,"Қорытынды",{"$f":"SUBTOTAL(109,FoodTable[ЖАЛПЫ ҚҰНЫ])","v":{"v":475,"d":"Т475.00"}},{"$f":"SUBTOTAL(109,FoodTable[ПОРЦИЯ/БАЛА])","v":34.5},{"$f":"SUBTOTAL(109,FoodTable[ПОРЦИЯ/ҮЛКЕН АДАМ])","v":65.5},{"$f":"SUBTOTAL(109,FoodTable[ЖАЛПЫ ПОРЦИЯЛАР])","v":2393},{"$f":"SUBTOTAL(109,FoodTable[ШЫҒЫН/ПОРЦИЯ])","v":{"v":6.915706603622084,"d":"Т6.92"}},{"$f":"SUBTOTAL(109,FoodTable[ШЫҒЫН/БАЛА])","v":{"v":7.252884190656953,"d":"Т7.25"}},{"$f":"SUBTOTAL(109,FoodTable[ШЫҒЫН/ҮЛКЕН АДАМ])","v":{"v":12.690089084110037,"d":"Т12.69"}}]

{"sheet":"Басқа негіздер","index":3,"n_rows":30,"n_cols":5,"rows_kept":30,"merged":[[14,1,14,4],[22,1,22,4]]}
[]
[]
[null,"Басқа негіздер"]
[]
[]
[null,"Жабдық пен қорлар","Құны","Сатып алынған","Ескерімдер"]
[null,"Бөлмені/заланы жалдау",{"v":250,"d":"Т250.00"},"Иә"]
[null,"Төсек-орын",{"v":30,"d":"Т30.00"},"Иә","Жалдау"]
[null,"Үстелдер мен орындықтар",{"v":0,"d":"Т0.00"},null,"Залды жалдауға кіреді"]
[null,"Сусын майлықтары",{"v":25,"d":"Т25.00"}]
[null,"Түскі ас майлықтары",{"v":20,"d":"Т20.00"},null,"Жалдау"]
[null,"Үстелге қызмет көрсету",{"v":50,"d":"Т50.00"},null,"Жалдау"]
[null,"Шыныдан жасалған бұйымдар",{"v":25,"d":"Т25.00"},null,"Жалдау"]
[null,"Қорытынды",{"$f":"SUBTOTAL(109,Table1Budget[Құны])","v":{"v":400,"d":"Т400.00"}}]
[]
[]
[null,"Декорациялар","Құны","Сатып алынған","Ескерімдер"]
[null,"Шариктер",{"v":25,"d":"Т25.00"}]
[null,"Гелий багы",{"v":50,"d":"Т50.00"},null,"Жалдау"]
[null,"Негізгі безендіру",{"v":100,"d":"Т100.00"},"Иә","Жалпы 10"]
[null,"Шыны вазалар",{"v":0,"d":"Т0.00"},null,"Сэндиден ала тұру"]
[null,"Қорытынды",{"$f":"SUBTOTAL(109,Table2Budget[Құны])","v":{"v":175,"d":"Т175.00"}}]
[]
[]
[null,"Басқа","Құны","Сатып алынған","Ескерімдер"]
[null,"Шақырулар",{"v":50,"d":"Т50.00"},"Иә"]
[null,"Пошта төлемдері",{"v":60,"d":"Т60.00"},"Иә"]
[null,"Фотограф",{"v":125,"d":"Т125.00"},null,"2 сағат (14:00 — 16:00)"]
[null,"Кеш кәдесыйлары",{"v":50,"d":"Т50.00"}]
[null,"Қорытынды",{"$f":"SUBTOTAL(109,Table3Budget[Құны])","v":{"v":285,"d":"Т285.00"}}]

{"sheet":"Орындардың орналасуының торы","index":4,"n_rows":43,"n_cols":34,"rows_kept":43,"merged":[[35,0,35,17],[35,19,35,33]]}
["Орындардың орналасуы"]
{"$rows_empty":33}
[{"$nulls":33},"*1 шаршы= шамамен 1 шаршу фут"]
["Ескерімдер",{"$nulls":18},{"$f":"\" Расталған қонақтардың жалпы саны: \"&ConfirmedGuests","v":" Расталған қонақтардың жалпы саны: 46"}]
[{"$nulls":19},"Келесі үстел құрылымдарының кез келгенін пайдалана аласыз:"]
[{"$nulls":20},{"$f":"ROUNDUP(ConfirmedGuests/6,0)&\" дөңгелек 54-дюймді кестелер (6 орындық)\"","v":"8 дөңгелек 54-дюймді кестелер (6 орындық)"}]
[{"$nulls":20},{"$f":"ROUNDUP(ConfirmedGuests/8,0) &\" дөңгелек 60-дюймді кестелер (8 орындық)\"","v":"6 дөңгелек 60-дюймді кестелер (8 орындық)"}]
[{"$nulls":20},{"$f":"ROUNDUP(ConfirmedGuests/10,0)&\"дөңгелек 72-дюймді кестелер (10 орындық)\"","v":"5дөңгелек 72-дюймді кестелер (10 орындық)"}]
[{"$nulls":20},{"$f":"ROUNDUP(ConfirmedGuests/6,0)& \" шаршы 30-дюйм x72-дюймді кестелер (6 орындық)\"","v":"8 шаршы 30-дюйм x72-дюймді кестелер (6 орындық)"}]
[{"$nulls":20},{"$f":"ROUNDUP(ConfirmedGuests/8,0)&\" шаршы 30-дюйм x96-дюймді кестелер (8 орындық)\"","v":"6 шаршы 30-дюйм x96-дюймді кестелер (8 орындық)"}]
[{"$nulls":19},"(Үстелдер арасындағы дұрыс аралық: 42 дюйм)"]